[Event "22nd Alekhine FIDE 2018"]
[Site "Voronezh"]
[Date "2018.06.19"]
[Round "8"]
[White "Kitaev, Roman"]
[Black "Kulpin, Dmitriy"]
[Result "1-0"]
[ECO "B44"]
[WhiteElo "2031"]
[BlackElo "1954"]
[Annotator "NA RC"]
[PlyCount "77"]
[EventDate "2018.??.??"]
[EventType "swiss"]
[EventCountry "RUS"]
[SourceTitle "playchess.com"]
[Source "ChessBase"]
[SourceQuality "1"]
[TimeControl "5400+30"]

{[%evp 10,77,37,13,39,32767,32767,32767,15,32767,32767,17,32767,21,34,41,29,25,19,12,54,54,58,37,38,32767,61,46,37,36,43,33,36,27,24,8,24,19,37,0,12,0,21,9,33,0,32767,32767,32767,32767,32767,12,6,-41,-37,-23,32767,-9,58,24,32767,85,78,80,192,171,205,229,29983,29987]} 1. e4 c5 2. Nf3 e6 3. d4 cxd4 4. Nxd4 Nc6 5. Nb5 d6 6. c4 a6 7. N5c3 Nf6 8. Na3 Be7 9. Be2 O-O 10. O-O b6 11. Be3 Rb8 12. Rc1 Bb7 13. f3 Re8 14. Nc2 {LiveBook: 3 Games} Qc7 15. Qd2 Red8 16. Nd4 Nxd4 17. Bxd4 Nd7 18. Rfd1 Rbc8 19. Bf1 Qb8 20. Qf2 Bc6 21. a4 Nc5 22. Qc2 a5 23. b3 Qb7 24. Qb2 Bf8 25. Kh1 Rd7 26. Ra1 Na6 27. Nd5 exd5 28. cxd5 Bxd5 29. Bxa6 Qxa6 30. exd5 Rdc7 31. Rd2 b5 32. h3 Qb7 33. b4 bxa4 (33... axb4 $11 34. Qxb4 Ra8) 34. bxa5 Qa6 35. Rxa4 Rc1+ 36. Kh2 g6 ({Better is} 36... Qf1 $14) 37. Re2 Bh6 38. Bf6 Bf4+ (38... R1c4 $18 39. Rxc4 Qxc4) 39. Rxf4 1-0

[Event "22nd Alekhine FIDE 2018"]
[Site "Voronezh"]
[Date "2018.06.20"]
[Round "9"]
[White "Abramov, Ilya"]
[Black "Kuzmin, Roman"]
[Result "1/2-1/2"]
[ECO "D93"]
[WhiteElo "2089"]
[BlackElo "1963"]
[Annotator "NA RC"]
[PlyCount "28"]
[EventDate "2018.??.??"]
[EventType "swiss"]
[EventCountry "RUS"]
[SourceTitle "playchess.com"]
[Source "ChessBase"]
[SourceQuality "1"]
[TimeControl "5400+30"]

{[%evp 8,27,30,15,33,2,43,23,43,19,14,1,29,10,53,13,41,65,119,99,120,116]} 1. d4 {[%emt 0:00:13]} Nf6 {[%emt 0:00:04]} 2. c4 {[%emt 0:00:02]} g6 {[%emt 0:00:14]} 3. Nc3 {[%emt 0:00:24]} d5 {[%emt 0:00:09]} 4. Bf4 {[%emt 0:01:28]} Bg7 {[%emt 0:00:53]} 5. e3 {[%emt 0:00:02]} O-O {[%emt 0:00:34]} 6. Nf3 {[%emt 0:00:31]} c6 {[%emt 0:01:26]} 7. h3 {[%emt 0:00:35]} Nbd7 {[%emt 0:11:38]} 8. Bd3 {[%emt 0:05:02] LiveBook: 3 Games} dxc4 {[%emt 0:00:11]} 9. Bxc4 {[%emt 0:00:01]} Nb6 {[%emt 0:00:18]} 10. Bd3 {[%emt 0:02:39]} Nbd5 {[%emt 0:00:22]} 11. Be5 {[%emt 0:00:49]} Qb6 {[%emt 0:10:51]} 12. Qd2 {[%emt 0:09:54]} a5 {[%emt 0:08:30]} ({Besser ist} 12... Bf5 $14) 13. e4 {[%emt 0:03:05]} Nb4 {[%emt 0:04:28]} 14. Bc4 $16 Rd8 1/2-1/2

[Event "22nd Alekhine FIDE 2018"]
[Site "Voronezh"]
[Date "2018.06.20"]
[Round "9"]
[White "Zisin, Oleg"]
[Black "Efendiev, Enver"]
[Result "1/2-1/2"]
[ECO "C63"]
[WhiteElo "2012"]
[BlackElo "1948"]
[Annotator "NA RC"]
[PlyCount "44"]
[EventDate "2018.??.??"]
[EventType "swiss"]
[EventCountry "RUS"]
[SourceTitle "playchess.com"]
[Source "ChessBase"]
[SourceQuality "1"]
[TimeControl "5400+30"]

{[%evp 8,28,50,29,32,28,57,26,53,35,19,10,8,0,18,7,17,14,10,32767,32767,-75,-73]} 1. e4 e5 2. Nf3 Nc6 3. Bb5 f5 4. d3 fxe4 5. dxe4 Nf6 6. O-O Bc5 7. Nc3 O-O 8. Bg5 d6 {LiveBook: 49 Games} 9. Bc4+ Kh8 10. Nd5 Bg4 11. Nxf6 gxf6 12. Bh6 Rg8 13. Bxg8 Qxg8 14. Be3 {[#]} (14. Kh1 $14 {bleibt weiter vorne.}) 14... f5 $17 15. h3 Bh5 16. Bxc5 fxe4 17. Qd2 Bxf3 18. g3 dxc5 19. c3 Rd8 20. Qc1 Rd6 21. Re1 Rg6 22. Kh2 Qe6 1/2-1/2

[Event "22nd Alekhine FIDE 2018"]
[Site "Voronezh"]
[Date "2018.06.20"]
[Round "9"]
[White "Tikhonov, Viacheslav"]
[Black "Tverdokhleb, Aleksandr"]
[Result "1-0"]
[ECO "D26"]
[WhiteElo "1993"]
[BlackElo "1889"]
[Annotator "NA RC"]
[PlyCount "29"]
[EventDate "2018.??.??"]
[EventType "swiss"]
[EventCountry "RUS"]
[SourceTitle "playchess.com"]
[Source "ChessBase"]
[SourceQuality "1"]
[TimeControl "5400+30"]

{[%evp 8,25,26,35,34,32,29,31,72,54,80,71,88,67,71,58,83,39,65,75]} 1. d4 {[%emt 0:00:00]} d5 {[%emt 0:00:55]} 2. c4 {[%emt 0:00:00]} dxc4 {[%emt 0:00:06]} 3. Nf3 {[%emt 0:00:00]} Nf6 {[%emt 0:00:25]} 4. e3 {[%emt 0:00:04]} e6 {[%emt 0:01:16]} 5. Bxc4 {[%emt 0:00:11]} c5 {[%emt 0:01:17]} 6. O-O {[%emt 0:00:07]} cxd4 {[%emt 0:01:09]} 7. exd4 {[%emt 0:06:25]} Nbd7 {[%emt 0:04:01]} 8. Nc3 {[%emt 0:00:31]} Nb6 {[%emt 0:03:18]} 9. Bb3 {[%emt 0:00:10]} Be7 {[%emt 0:00:44]} 10. Qe2 {[%emt 0:04:13]} O-O {[%emt 0:01:51]} 11. Rd1 {[%emt 0:03:47]} Nbd5 {[%emt 0:22:33] LiveBook: 3 Games} 12. Bg5 {[%emt 0:03:37]} Re8 {[%emt 0:07:41]} 13. Ne5 $16 {[%emt 0:08:22]} Bd7 {[%emt 0:07:10]} 14. Rd3 {[%emt 0:16:25]} Rc8 15. Rh3 1-0

[Event "22nd Alekhine FIDE 2018"]
[Site "Voronezh"]
[Date "2018.06.20"]
[Round "9"]
[White "Artemov, Nikita"]
[Black "Yakimenko, Alexander A"]
[Result "1-0"]
[ECO "C04"]
[WhiteElo "1970"]
[BlackElo "2094"]
[Annotator "NA RC"]
[PlyCount "73"]
[EventDate "2018.??.??"]
[EventType "swiss"]
[EventCountry "RUS"]
[SourceTitle "playchess.com"]
[Source "ChessBase"]
[SourceQuality "1"]
[TimeControl "5400+30"]

{[%evp 8,70,40,33,33,33,60,44,50,35,58,10,67,0,0,8,35,38,96,73,32767,32767,323,347,331,334,329,332,491,509,526,441,496,500,488,483,480,421,431,32767,32767,32767,32767,32767,449,602,468,629,547,505,443,441,438,472,498,356,497,32767,1023,1143,1065,1138,1049,964,884]} 1. e4 {[%emt 0:12:03]} e6 {[%emt 0:01:17]} 2. d4 {[%emt 0:00:06]} d5 {[%emt 0:00:04]} 3. Nd2 {[%emt 0:00:06]} Nc6 {[%emt 0:00:06]} 4. Ngf3 {[%emt 0:00:07]} Nf6 {[%emt 0:00:07]} 5. e5 {[%emt 0:00:05]} Nd7 {[%emt 0:00:05]} 6. c4 {[%emt 0:00:05]} f6 {[%emt 0:03:39] C04: French Tarrasch: 3...Nc6} (6... Be7 7. Bd3 Nb4 8. Bb1 dxc4 9. Nxc4 Nb6 10. Ncd2 Bd7 11. a3 N4d5 12. O-O Ba4 13. Bc2 Qd7 14. Ne4 Bxc2 15. Qxc2 {½-½ (49) Jobava,B (2706)-Kuzubov,Y (2615) Plovdiv 2012}) 7. cxd5 {[%emt 0:01:49]} exd5 {[%emt 0:00:12] LiveBook: 4 Games} 8. Bb5 {[%emt 0:03:09]} Be7 {[%emt 0:08:12]} 9. O-O {[%emt 0:03:41]} O-O {[%emt 0:00:54]} 10. e6 {[%emt 0:09:20]} Nb6 {[%emt 0:02:13]} 11. Re1 {[%emt 0:01:00]} Qd6 {[%emt 0:04:55]} 12. Nb3 {[%emt 0:02:16]} Nd8 $146 {[%emt 0:07:11] [#]} (12... a6 $11 13. Bxc6 Qxc6) ({Predecessor:} 12... Bxe6 13. Qe2 Kf7 14. Bf4 {1-0 (37) Pogonina,N (2472)-Khader,S (2450) Moscow 2011}) 13. Nc5 $1 {[%emt 0:02:36]} c6 {[%emt 0:01:07]} 14. Bd3 {[%emt 0:01:11]} g6 {[%emt 0:16:15]} (14... Nxe6 {is a better defense.} 15. Qe2 Nxc5 16. dxc5 Qxc5) 15. g3 {[%emt 0:13:39]} Nxe6 {[%emt 0:02:13] [#]} 16. Rxe6 $1 {[%emt 0:01:15]} Bxe6 {[%emt 0:00:30]} 17. Bf4 {[%emt 0:00:04]} Qxf4 {[%emt 0:04:16]} (17... Qd8 $142) 18. gxf4 {[%emt 0:00:20]} Bg4 {[%emt 0:01:18]} 19. Kg2 {[%emt 0:00:53]} Bd6 {[%emt 0:00:45]} 20. Qc2 {[%emt 0:02:28]} Rf7 {[%emt 0:02:10]} 21. h3 {[%emt 0:00:12]} Bh5 {[%emt 0:00:39]} 22. Ne6 {[%emt 0:03:08]} Re8 {[%emt 0:01:27]} 23. f5 {[%emt 0:04:05]} gxf5 {[%emt 0:02:25]} 24. Bxf5 {[%emt 0:00:13]} Kh8 {[%emt 0:00:12]} 25. Nh2 {[%emt 0:02:53]} Rfe7 {[%emt 0:03:05]} 26. Ng4 {[%emt 0:03:46]} Nd7 {[%emt 0:01:27]} 27. Re1 {[%emt 0:08:43]} Bf7 {[%emt 0:03:44]} 28. Nh6 {[%emt 0:05:22]} Bxe6 {[%emt 0:01:45]} 29. Bxe6 {[%emt 0:01:20]} Rxe6 {[%emt 0:00:15]} 30. Rxe6 {[%emt 0:01:03]} Rxe6 {[%emt 0:00:02]} 31. Qf5 {[%emt 0:01:00]} Re7 {[%emt 0:02:07]} 32. Kf1 {[%emt 0:01:03]} Bc7 {[%emt 0:08:45]} 33. Qg4 {[%emt 0:00:43]} Rg7 {[%emt 0:00:53]} 34. Qe6 {[%emt 0:00:23]} Nf8 {[%emt 0:02:46]} 35. Qe8 {[%emt 0:02:40]} Bd6 $18 {[%emt 0:00:32]} 36. Nf5 {[%emt 0:00:14]} Bb4 {[%emt 0:00:42]} 37. a3 {[%emt 0:00:31]} 1-0

[Event "22nd Alekhine FIDE 2018"]
[Site "Voronezh"]
[Date "2018.06.20"]
[Round "9"]
[White "Kulpin, Dmitriy"]
[Black "Bobkov, Vadim"]
[Result "1-0"]
[ECO "E04"]
[WhiteElo "1954"]
[BlackElo "2058"]
[Annotator "NA RC"]
[PlyCount "109"]
[EventDate "2018.??.??"]
[EventType "swiss"]
[EventCountry "RUS"]
[SourceTitle "playchess.com"]
[Source "ChessBase"]
[SourceQuality "1"]
[TimeControl "5400+30"]

{[%evp 14,107,16,14,7,6,0,-30,-16,-16,-14,-17,-19,-20,-8,-27,-12,-95,32767,32767,-70,-91,-86,-114,-101,-127,32767,32767,-85,-74,-89,-151,-141,-136,-109,-134,-110,32767,-114,-139,-110,-118,-100,32767,32767,-142,-79,-188,-179,-173,-192,-243,-244,-245,-238,-388,-393,-343,-252,32767,-236,32767,32767,-375,-181,-264,32767,-505,-429,-517,-503,32767,32767,32767,32767,32767,0,-211,32767,32767,32767,32767,186,188,194,32767,0,32767,32767,32767,32767,1152,32767,1076,32767,29982]} 1. d4 {[%emt 0:00:00]} d5 {[%emt 0:00:03]} 2. Nf3 {[%emt 0:00:00]} Nf6 {[%emt 0:00:03]} 3. c4 {[%emt 0:00:00]} e6 {[%emt 0:00:03]} 4. g3 {[%emt 0:00:00]} dxc4 {[%emt 0:00:05]} 5. Bg2 {[%emt 0:00:00]} Nc6 {[%emt 0:00:06]} 6. O-O {[%emt 0:00:30]} Rb8 {[%emt 0:00:17]} 7. a4 {[%emt 0:00:49]} a6 {[%emt 0:00:33]} 8. a5 {[%emt 0:01:59]} b5 {[%emt 0:00:54] E04: Katalanisch} 9. axb6 $1 {[%emt 0:00:14]} cxb6 {[%emt 0:00:02]} 10. Bf4 {[%emt 0:02:10]} Bd6 {[%emt 0:09:48]} 11. Ne5 {[%emt 0:01:44]} Ne7 $1 {[%emt 0:00:13]} 12. Nxc4 {[%emt 0:06:44]} Bxf4 {[%emt 0:00:09]} 13. gxf4 {[%emt 0:00:02] LiveBook: 4 Games} O-O {[%emt 0:01:02] [#]} 14. Nc3 $146 {[%emt 0:00:53]} ({Vorgänger:} 14. e3 Nfd5 15. Ne5 Bb7 16. Nd2 Ng6 17. Nxg6 hxg6 18. Nf3 Qe7 19. Ne5 Nb4 20. Bxb7 Rxb7 21. Rc1 Rc7 22. Rxc7 Qxc7 23. Qd2 {½-½ (23) Timoshenko,G (2510)-Novikov,I (2580) Nova Gorica 1997}) 14... Ng6 {[%emt 0:16:14]} 15. Ne5 {[%emt 0:06:46]} (15. e3 $11 {hält das Gleichgewicht.}) 15... Nxf4 {[%emt 0:26:10]} 16. Bf3 {[%emt 0:13:35]} Qd6 {[%emt 0:17:50]} 17. e3 {[%emt 0:03:44]} N4d5 {[%emt 0:01:35]} 18. Ne2 {[%emt 0:03:57]} Bb7 {[%emt 0:01:52]} 19. Ng3 {[%emt 0:01:08]} b5 {[%emt 0:00:52]} 20. Rc1 {[%emt 0:02:52]} Rfc8 {[%emt 0:01:38]} 21. Rxc8+ {[%emt 0:03:30]} Rxc8 {[%emt 0:00:31]} 22. e4 {[%emt 0:02:25]} (22. Qd2 $142) 22... Ne7 {[%emt 0:02:35]} 23. Qd2 {[%emt 0:14:34]} Qc7 {[%emt 0:03:42]} 24. Re1 {[%emt 0:05:25]} Ng6 {[%emt 0:02:51]} 25. Nd3 {[%emt 0:03:41]} Qd8 {[%emt 0:03:43]} 26. Qe3 {[%emt 0:02:04]} Nd7 {[%emt 0:01:31]} 27. Rd1 {[%emt 0:02:51]} Nh4 {[%emt 0:05:34]} 28. Bh1 {[%emt 0:02:20]} Nb6 {[%emt 0:00:03]} 29. Ne5 {[%emt 0:01:54]} f6 {[%emt 0:03:47]} ({Günstiger ist} 29... Ng6 30. Bf3 Qd6) 30. Nf3 {[%emt 0:00:03]} (30. Nd3 $17) 30... Nc4 {[%emt 0:00:29]} 31. Qe2 {[%emt 0:00:27] [#]} Ng6 $1 {[%emt 0:00:38]} 32. b3 {[%emt 0:03:01]} Nf4 {[%emt 0:00:30]} 33. Qa2 {[%emt 0:00:18]} Qa5 {[%emt 0:00:28]} 34. Qb1 {[%emt 0:01:47]} (34. Qa1 {might work better.} Qxa1 35. Rxa1) 34... Na3 {[%emt 0:00:09]} 35. Qa1 {[%emt 0:00:42]} Rc2 {[%emt 0:00:57]} 36. Bg2 {[%emt 0:02:49]} b4 {[%emt 0:00:13]} 37. Ne1 {[%emt 0:00:46]} Rc3 {[%emt 0:00:29]} 38. Bf1 {[%emt 0:02:53]} (38. Qa2 {might work better.}) 38... Qc7 {[%emt 0:00:46]} (38... Rxb3 $2 39. Qa2 $17) (38... h5 $142 39. d5 h4) 39. Qb2 {[%emt 0:00:50]} (39. Nd3 $142) 39... Nc2 {[%emt 0:00:39]} 40. Bc4 $2 {[%emt 0:03:49]} (40. d5 exd5 41. Nxc2 Rxc2 42. Qd4) 40... Nh3+ {[%emt 0:00:39]} 41. Kg2 {[%emt 0:00:32]} Nxe1+ {[%emt 0:00:17]} 42. Rxe1 {[%emt 0:00:12]} Nf4+ {[%emt 0:00:04]} 43. Kf1 {[%emt 0:00:14]} Qd6 {[%emt 0:00:40]} 44. Qd2 {[%emt 0:00:33]} h5 {[%emt 0:00:45]} ({Black should try} 44... a5 $17 45. e5 fxe5 46. Rxe5 Rf3 47. Rxa5 g6) 45. h4 $2 {[%emt 0:01:32]} (45. e5 $1 $11 {und Weiss ist OK.} Qc6 46. Qxf4 Qg2+ 47. Ke2) 45... Rf3 {[%emt 0:00:40]} 46. Qd1 {[%emt 0:00:43]} Rc3 {[%emt 0:00:07]} 47. Nxh5 {[%emt 0:01:19]} Rh3 $2 {[%emt 0:00:26]} (47... Bc8 $11) 48. Nxf4 Rh1+ 49. Ke2 {[%emt 0:01:49]} Qxf4 {[%emt 0:01:26]} 50. Rxh1 {[%emt 0:01:12]} Bxe4 {[%emt 0:00:33]} 51. Bxe6+ {[%emt 0:01:04]} Kh8 {[%emt 0:00:00]} 52. Rh3 {[%emt 0:00:26]} f5 {[%emt 0:00:21]} 53. Rg3 $18 {[%emt 0:00:31]} Qxh4 {[%emt 0:00:28]} 54. Qf1 {[%emt 0:01:43]} Qh5+ {[%emt 0:00:45]} 55. Ke1 {[%emt 0:00:28]} 1-0